fUSD/lending_fUSD_20250630
["ID","MTS","AMOUNT","RATE_DAILY","PERIOD"]
[368648411,1751266237744,-490.0,0.00016438,2]
[368648412,1751266237754,-490.0,0.00016438,2]
[368648413,1751266237763,-490.0,0.00016438,2]
[368648414,1751266237773,-490.0,0.00016438,2]
[368648415,1751266237782,-2218.86,0.00016438,2]
[368648416,1751266237792,-492.48,0.00016438,2]
[368648417,1751266237801,-490.0,0.00016438,2]
[368648418,1751266237811,-490.0,0.00016438,2]
[368648419,1751266237821,-490.0,0.00016438,2]
[368648420,1751266237831,-6992.87,0.00016438,2]
[368648421,1751266237840,-490.0,0.00016438,2]
[368648422,1751266237849,-2579.54,0.00016438,2]
[368648423,1751266237859,-490.0,0.00016438,2]
[368648424,1751266237869,-578.94,0.00016438,2]
[368648425,1751266237878,-490.0,0.00016438,2]
[368648426,1751266237887,-490.0,0.00016438,2]
[368648427,1751266237897,-960.44,0.00016438,2]
[368648428,1751266237908,-490.0,0.00016438,2]
[368648429,1751266237917,-490.0,0.00016438,2]
[368648430,1751266237926,-1954.51,0.00016438,2]
[368648431,1751266237936,-490.0,0.00016438,2]
[368648432,1751266237946,-490.0,0.00016438,2]
[368648433,1751266237957,-490.0,0.00016438,2]
[368648434,1751266237966,-1163.92,0.00016438,2]
[368648435,1751266237975,-490.0,0.00016438,2]
[368648436,1751266237985,-490.0,0.00016438,2]
[368648437,1751266237994,-490.0,0.00016438,2]
[368648438,1751266238003,-553.29,0.00016438,2]
[368648439,1751266238013,-1960.7,0.00016438,2]
[368648440,1751266238022,-490.0,0.00016438,2]
[368648441,1751266238031,-490.0,0.00016438,2]
[368648442,1751266238040,-490.0,0.00016438,2]
[368648443,1751266238049,-1499.17,0.00016438,2]
[368648444,1751266238059,-490.0,0.00016438,2]
[368648445,1751266238068,-519.69,0.00016438,2]
[368648446,1751266238077,-1161.38,0.00016438,2]
[368648447,1751266238087,-631.49,0.00016438,2]
[368648448,1751266238096,-8926.08,0.00016438,2]
[368648449,1751266238105,-542.03,0.00016438,2]
[368648450,1751266238115,-490.0,0.00016438,2]
[368648451,1751266238124,-490.0,0.00016438,2]
[368648452,1751266238133,-490.0,0.00016438,2]
[368648453,1751266238143,-1384.99,0.00016438,2]
[368648454,1751266238152,-2028.6,0.00016438,2]
[368648455,1751266238162,-490.0,0.00016438,2]
[368648456,1751266238172,-3335.8178106,0.00016438,2]
[368648457,1751266238210,-818.05537692,0.00016438,2]
[368648458,1751266238221,-843.2866551,0.00016438,2]
[368648459,1751266238257,-426.78015738,0.00016438,2]
[368648460,1751266238267,-1539.08363495,0.00016438,2]
[368648700,1751266240769,-92.17636505,0.00016438,2]
[368648702,1751266240779,-998.98,0.00016438,2]
[368648704,1751266240788,-490.0,0.00016438,2]
[368648706,1751266240797,-3660.15,0.00016438,2]
[368648708,1751266240807,-490.0,0.00016438,2]
[368648709,1751266240817,-957.69,0.00016438,2]
[368648711,1751266240826,-490.0,0.00016438,2]
[368648713,1751266240835,-490.0,0.00016438,2]
[368648715,1751266240844,-3264.74,0.00016438,2]
[368648717,1751266240853,-565.17,0.00016438,2]
[368648719,1751266240862,-1239.0,0.00016438,2]
[368648721,1751266240871,-887.88,0.00016438,2]
[368648722,1751266240881,-3884.36,0.00016438,2]
[368648724,1751266240890,-1994.21,0.00016438,2]
[368648726,1751266240899,-490.0,0.00016438,2]
[368648728,1751266240909,-1220.88,0.00016438,2]
[368648730,1751266240919,-860.34,0.00016438,2]
[368648732,1751266240928,-491.30622119,0.00016438,2]
[368648734,1751266240936,-490.0,0.00016438,2]
[368648735,1751266240945,-1455.98,0.00016438,2]
[368648737,1751266240954,-490.0,0.00016438,2]
[368648739,1751266240963,-291.07965328,0.00016438,2]
[368648741,1751266240972,-490.0,0.00016438,2]
[368648743,1751266240981,-1460.64,0.00016438,2]
[368648745,1751266240991,-3231.71,0.00016438,2]
[368648746,1751266241000,-490.0,0.00016438,2]
[368648748,1751266241009,-490.0,0.00016438,2]
[368648750,1751266241018,-490.0,0.00016438,2]
[368648752,1751266241027,-428.51245825,0.00016438,2]
[368648754,1751266241036,-490.0,0.00016438,2]
[368648756,1751266241045,-490.0,0.00016438,2]
[368648758,1751266241055,-4204.84,0.00016438,2]
[368648760,1751266241064,-564.39,0.00016438,2]
[368648761,1751266241073,-1360.36,0.00016438,2]
[368648763,1751266241083,-490.0,0.00016438,2]
[368648765,1751266241092,-490.0,0.00016438,2]
[368648767,1751266241101,-6472.51,0.00016438,2]
[368648769,1751266241111,-563.07,0.00016438,2]
[368648771,1751266241120,-2393.84,0.00016438,2]
[368648773,1751266241129,-490.0,0.00016438,2]
[368648775,1751266241138,-2012.08,0.00016438,2]
[368648776,1751266241148,-1522.62,0.00016438,2]
[368648778,1751266241158,-168.872517,0.00016438,2]
[368648780,1751266241168,-490.0,0.00016438,2]
[368648782,1751266241179,-3275.99,0.00016438,2]
[368648784,1751266241188,-3467.78,0.00016438,2]
[368648786,1751266241197,-9335.42,0.00016438,2]
[368648788,1751266241207,-2636.31,0.00016438,2]
[368648790,1751266241216,-490.0,0.00016438,2]
[368648792,1751266241225,-384.29806654,0.00016438,2]
[368648793,1751266241234,-490.0,0.00016438,2]
[368648795,1751266241243,-760.62,0.00016438,2]
[368648797,1751266241252,-725.74,0.00016438,2]
[368648799,1751266241261,-1652.52,0.00016438,2]
[368648801,1751266241271,-621.51386756,0.00016438,2]
[368648803,1751266241280,-791.8,0.00016438,2]
[368648805,1751266241290,-4890.67,0.00016438,2]
[368648806,1751266241299,-490.0,0.00016438,2]
[368648808,1751266241308,-2068.77,0.00016438,2]
[368648810,1751266241319,-461.36226226,0.00016438,2]
[368648812,1751266241328,-490.0,0.00016438,2]
[368648814,1751266241337,-490.0,0.00016438,2]
[368648816,1751266241346,-3643.15,0.00016438,2]
[368648818,1751266241356,-559.41,0.00016438,2]
[368648820,1751266241365,-6402.54,0.00016438,2]
[368648821,1751266241374,-490.0,0.00016438,2]
[368648823,1751266241384,-1135.26,0.00016438,2]
[368648825,1751266241393,-490.0,0.00016438,2]
[368648827,1751266241403,-912.3,0.00016438,2]
[368648829,1751266241413,-490.0,0.00016438,2]
[368648831,1751266241422,-936.88,0.00016438,2]
[368648833,1751266241432,-490.0,0.00016438,2]
[368648835,1751266241443,-2272.09,0.00016438,2]
[368648836,1751266241452,-490.0,0.00016438,2]
[368648838,1751266241462,-500.0,0.00016438,2]
[368648840,1751266241470,-650.27,0.00016438,2]
[368648842,1751266241480,-627.91858885,0.00016438,2]
[368648843,1751266241501,-2209.98352126,0.00016438,2]
[368648844,1751266241536,-1269.54788989,0.00016438,2]
[368648845,1751266241545,-490.0,0.00016438,2]
[368648846,1751266241554,-3631.08011012,0.00016438,2]
[368648847,1751266241565,-849.14988988,0.00016438,2]
[368648848,1751266241574,-12.25011012,0.00016438,2]
[368648849,1751266241586,-278.7724833,0.00016438,2]
[368648850,1751266241598,-198.97740658,0.00016438,2]
[368648851,1751266241607,-490.0,0.00016438,2]
[368648852,1751266241616,-490.0,0.00016438,2]
[368648853,1751266241626,-1009.37259341,0.00016438,2]
[368648857,1751266241673,-3495.22740659,0.00016438,2]
[368648859,1751266241682,-1312.08,0.00016438,2]
[368648861,1751266241692,-343.4134,0.00016438,2]
[368648863,1751266241701,-490.0,0.00016438,2]
[368648865,1751266241710,-249.7470606,0.00016438,2]
[368648867,1751266241723,-767.2329394,0.00016438,2]
[368648869,1751266241732,-225.65268729,0.00016438,2]
[368648871,1751266241743,-815.71198967,0.00016438,2]
[368648873,1751266241754,-250.32532304,0.00016438,2]
[368648875,1751266241764,-490.0,0.00016438,2]
[368648877,1751266241773,-3290.68,0.00016438,2]
[368648879,1751266241782,-48.69454736,0.00016438,2]
[368648881,1751266241794,-441.30545264,0.00016438,2]
[368648883,1751266241803,-71.82066502,0.00016438,2]
[368648886,1751266241814,-412.7091278,0.00016438,2]
[368648888,1751266241825,-5.47020718,0.00016438,2]
[368648890,1751266241834,-1741.18,0.00016438,2]
[368648892,1751266241844,-490.0,0.00016438,2]
[368648894,1751266241853,-3153.84979282,0.00016438,2]
[368648973,1751266242596,-712.91269924,0.00016438,2]
[368648981,1751266242655,-3543.71750794,0.00016438,2]
[368648984,1751266242665,-490.0,0.00016438,2]
[368648986,1751266242675,-11225.62071655,0.00016438,2]
[368648988,1751266242686,-4305.74999967,0.00016438,2]
[368649145,1751266244174,-7601.05928378,0.00016438,2]
[368649147,1751266244184,-511.53955641,0.00016438,2]
[368649149,1751266244193,-1345.64,0.00016438,2]
[368649151,1751266244204,-1287.11,0.00016438,2]
[368649153,1751266244213,-490.0,0.00016438,2]
[368649156,1751266244223,-1130.1,0.00016438,2]
[368649158,1751266244233,-2395.98,0.00016438,2]
[368649160,1751266244243,-1990.41,0.00016438,2]
[368649162,1751266244252,-2107.65,0.00016438,2]
[368649164,1751266244261,-524.68,0.00016438,2]
[368649166,1751266244271,-4785.58,0.00016438,2]
[368649168,1751266244280,-8815.49,0.00016438,2]
[368649170,1751266244290,-490.0,0.00016438,2]
[368649172,1751266244300,-2972.83,0.00016438,2]
[368649174,1751266244310,-490.0,0.00016438,2]
[368649176,1751266244321,-490.0,0.00016438,2]
[368649178,1751266244331,-4461.42,0.00016438,2]
[368649180,1751266244341,-944.69,0.00016438,2]
[368649182,1751266244351,-490.0,0.00016438,2]
[368649184,1751266244361,-2436.86,0.00016438,2]
[368649186,1751266244370,-490.0,0.00016438,2]
[368649188,1751266244380,-490.0,0.00016438,2]
[368649190,1751266244389,-199.32008,0.00016438,2]
[368649192,1751266244399,-7979.47,0.00016438,2]
[368649194,1751266244411,-199.32008,0.00016438,2]
[368649197,1751266244420,-199.32008,0.00016438,2]
[368649199,1751266244431,-490.0,0.00016438,2]
[368649201,1751266244444,-588.02,0.00016438,2]
[368649203,1751266244453,-6634.74,0.00016438,2]
[368649205,1751266244463,-490.0,0.00016438,2]
[368649207,1751266244472,-5058.96,0.00016438,2]
[368649209,1751266244482,-199.32008,0.00016438,2]
[368649211,1751266244492,-1538.95,0.00016438,2]
[368649213,1751266244501,-199.32008,0.00016438,2]
[368649215,1751266244511,-490.0,0.00016438,2]
[368649217,1751266244521,-3462.67,0.00016438,2]
[368649219,1751266244530,-199.32008,0.00016438,2]
[368649220,1751266244540,-490.0,0.00016438,2]
[368649221,1751266244549,-199.32008,0.00016438,2]
[368649222,1751266244559,-490.0,0.00016438,2]
[368649223,1751266244569,-199.32008,0.00016438,2]
[368649224,1751266244579,-2876.34,0.00016438,2]
[368649225,1751266244589,-490.0,0.00016438,2]
[368649226,1751266244600,-217.49641929,0.00016438,2]
[368649227,1751266244610,-160.07103671,0.00016438,2]
[368649228,1751266244619,-199.32008,0.00016438,2]
[368649229,1751266244630,-199.32008,0.00016438,2]
[368649230,1751266244639,-490.0,0.00016438,2]
[368649231,1751266244649,-199.32008,0.00016438,2]
[368649232,1751266244661,-341.14468733,0.00016438,2]
[368649233,1751266244671,-199.32008,0.00016438,2]
[368649234,1751266244681,-199.32008,0.00016438,2]
[368649235,1751266244691,-490.0,0.00016438,2]
[368649236,1751266244701,-199.32008,0.00016438,2]
[368649237,1751266244711,-199.32008,0.00016438,2]
[368649253,1751266245057,-2647.39,0.00016438,2]
[368649254,1751266245067,-960.48,0.00016438,2]
[368649255,1751266245077,-199.32007,0.00016438,2]
[368649256,1751266245087,-490.0,0.00016438,2]
[368649257,1751266245096,-490.0,0.00016438,2]
[368649258,1751266245105,-490.0,0.00016438,2]
[368649259,1751266245114,-2647.08,0.00016438,2]
[368649260,1751266245124,-2216.01,0.00016438,2]
[368649261,1751266245134,-617.1,0.00016438,2]
[368649262,1751266245144,-490.0,0.00016438,2]
[368649263,1751266245154,-7598.03,0.00016438,2]
[368649264,1751266245165,-1665.54,0.00016438,2]
[368649265,1751266245176,-490.0,0.00016438,2]
[368649266,1751266245185,-490.0,0.00016438,2]
[368649267,1751266245195,-653.3,0.00016438,2]
[368649268,1751266245204,-2013.0,0.00016438,2]
[368649269,1751266245214,-490.0,0.00016438,2]
[368649270,1751266245224,-490.0,0.00016438,2]
[368649271,1751266245233,-236.99090741,0.00016438,2]
[368649272,1751266245247,-1510.26909259,0.00016438,2]
[368649273,1751266245257,-2038.03,0.00016438,2]
[368649274,1751266245266,-696.35,0.00016438,2]
[368649275,1751266245275,-490.0,0.00016438,2]
[368649276,1751266245285,-700.12,0.00016438,2]
[368649277,1751266245295,-490.0,0.00016438,2]
[368649278,1751266245304,-646.83,0.00016438,2]
[368649279,1751266245314,-490.0,0.00016438,2]
[368649280,1751266245325,-5559.02,0.00016438,2]
[368649281,1751266245334,-619.88,0.00016438,2]
[368649282,1751266245344,-151.0,0.00016438,2]
[368649283,1751266245353,-151.0,0.00016438,2]
[368649284,1751266245363,-151.0,0.00016438,2]
[368649285,1751266245373,-151.0,0.00016438,2]
[368649286,1751266245383,-490.0,0.00016438,2]
[368649287,1751266245392,-151.0,0.00016438,2]
[368649288,1751266245402,-151.0,0.00016438,2]
[368649289,1751266245412,-151.0,0.00016438,2]
[368649290,1751266245421,-490.0,0.00016438,2]
[368649291,1751266245433,-882.27,0.00016438,2]
[368649292,1751266245443,-987.14,0.00016438,2]
[368649293,1751266245454,-490.0,0.00016438,2]
[368649294,1751266245463,-500.0,0.00016438,2]
[368649295,1751266245474,-490.0,0.00016438,2]
[368649296,1751266245483,-2473.19,0.00016438,2]
[368649297,1751266245494,-500.0,0.00016438,2]
[368649298,1751266245503,-500.0,0.00016438,2]
[368649299,1751266245515,-4416.92855427,0.00016438,2]
[368649300,1751266245533,-720.96964428,0.00016438,2]
[368649301,1751266245566,-3055.30180145,0.00016438,2]
[368649302,1751266245575,-490.0,0.00016438,2]
[368649303,1751266245587,-1057.9,0.00016438,2]
[368649304,1751266245597,-1916.43,0.00016438,2]
[368649305,1751266245607,-490.0,0.00016438,2]
[368649306,1751266245616,-490.0,0.00016438,2]
[368649307,1751266245626,-812.28,0.00016438,2]
[368649309,1751266245636,-2404.09,0.00016438,2]
[368649310,1751266245645,-5120.05,0.00016438,2]
[368649311,1751266245657,-490.0,0.00016438,2]
[368649312,1751266245668,-5443.41,0.00016438,2]
[368649313,1751266245678,-27665.41,0.00016438,2]
[368649314,1751266245687,-2390.41,0.00016438,2]
[368649315,1751266245697,-956.43,0.00016438,2]
[368649317,1751266245706,-2007.93,0.00016438,2]
[368649318,1751266245716,-2091.15,0.00016438,2]
[368649319,1751266245725,-1723.22,0.00016438,2]
[368649321,1751266245734,-3385.28,0.00016438,2]
[368649323,1751266245744,-725.41,0.00016438,2]
[368649325,1751266245753,-763.05,0.00016438,2]
[368649327,1751266245763,-2582.09,0.00016438,2]
[368649329,1751266245772,-4761.14,0.00016438,2]
[368649331,1751266245781,-3989.1,0.00016438,2]
[368649333,1751266245791,-7905.06,0.00016438,2]
[368649335,1751266245800,-582.1,0.00016438,2]
[368649337,1751266245809,-1029.57,0.00016438,2]
[368649338,1751266245820,-538.65,0.00016438,2]
[368649339,1751266245829,-2047.07,0.00016438,2]
[368649340,1751266245838,-353.2701753,0.00016438,2]
[368649341,1751266245848,-2442.52,0.00016438,2]
[368649342,1751266245857,-490.0,0.00016438,2]
[368649343,1751266245867,-1739.64,0.00016438,2]
[368649344,1751266245876,-2206.25,0.00016438,2]
[368649345,1751266245888,-532.16,0.00016438,2]
[368649346,1751266245898,-490.0,0.00016438,2]
[368649347,1751266245907,-2037.8,0.00016438,2]
[368649348,1751266245918,-3920.59,0.00016438,2]
[368649349,1751266245928,-2132.17,0.00016438,2]
[368649350,1751266245937,-2435.63,0.00016438,2]
[368649351,1751266245946,-10863.92,0.00016438,2]
[368649352,1751266245955,-1777.21,0.00016438,2]
[368649353,1751266245965,-490.0,0.00016438,2]
[368649354,1751266245974,-500.0,0.00016438,2]
[368649355,1751266245983,-665.92,0.00016438,2]
[368649356,1751266245993,-2895.73,0.00016438,2]
[368649357,1751266246002,-3656.49,0.00016438,2]
[368649358,1751266246011,-494.47839006,0.00016438,2]
[368649359,1751266246020,-490.0,0.00016438,2]
[368649360,1751266246030,-5249.13,0.00016438,2]
[368649361,1751266246041,-490.0,0.00016438,2]
[368649362,1751266246050,-493.96484857,0.00016438,2]
[368649363,1751266246059,-1234.81,0.00016438,2]
[368649364,1751266246069,-490.0,0.00016438,2]
[368649365,1751266246079,-2483.49,0.00016438,2]
[368649366,1751266246089,-500.0,0.00016438,2]
[368649367,1751266246099,-500.0,0.00016438,2]
[368649368,1751266246108,-490.0,0.00016438,2]
[368649369,1751266246118,-490.0,0.00016438,2]
[368649370,1751266246128,-490.0,0.00016438,2]
[368649371,1751266246137,-2895.9,0.00016438,2]
[368649372,1751266246147,-742.65,0.00016438,2]
[368649373,1751266246156,-4591.58,0.00016438,2]
[368649374,1751266246166,-490.0,0.00016438,2]
[368649375,1751266246175,-993.34,0.00016438,2]
[368649376,1751266246185,-1919.11,0.00016438,2]
[368649377,1751266246195,-1745.72,0.00016438,2]
[368649378,1751266246204,-490.0,0.00016438,2]
[368649379,1751266246214,-2270.81,0.00016438,2]
[368649380,1751266246223,-3664.1,0.00016438,2]
[368649381,1751266246233,-490.0,0.00016438,2]
[368649382,1751266246243,-500.0,0.00016438,2]
[368649383,1751266246252,-500.0,0.00016438,2]
[368649385,1751266246262,-500.0,0.00016438,2]
[368649387,1751266246271,-730.27,0.00016438,2]
[368649389,1751266246280,-410.49837548,0.00016438,2]
[368649392,1751266246289,-490.0,0.00016438,2]
[368649395,1751266246299,-4340.88,0.00016438,2]
[368649398,1751266246308,-3272.64,0.00016438,2]
[368649400,1751266246318,-1077.77,0.00016438,2]
[368649402,1751266246326,-741.18,0.00016438,2]
[368649404,1751266246337,-8870.06,0.00016438,2]
[368649406,1751266246347,-1427.18,0.00016438,2]
[368649407,1751266246357,-1981.9,0.00016438,2]
[368649408,1751266246366,-491.2,0.00016438,2]
[368649409,1751266246375,-490.0,0.00016438,2]
[368649410,1751266246384,-490.0,0.00016438,2]
[368649411,1751266246394,-5749.94,0.00016438,2]
[368649412,1751266246403,-1552.38,0.00016438,2]
[368649413,1751266246412,-490.0,0.00016438,2]
[368649414,1751266246421,-3558.48,0.00016438,2]
[368649415,1751266246431,-723.6,0.00016438,2]
[368649416,1751266246445,-490.0,0.00016438,2]
[368649417,1751266246454,-491.55283176,0.00016438,2]
[368649418,1751266246463,-2215.58,0.00016438,2]
[368649419,1751266246472,-1432.2,0.00016438,2]
[368649420,1751266246482,-3457.76,0.00016438,2]
[368649421,1751266246491,-490.0,0.00016438,2]
[368649422,1751266246500,-490.0,0.00016438,2]
[368649423,1751266246511,-490.0,0.00016438,2]
[368649424,1751266246520,-490.0,0.00016438,2]
[368649425,1751266246529,-490.0,0.00016438,2]
[368649426,1751266246538,-490.0,0.00016438,2]
[368649427,1751266246548,-512.69,0.00016438,2]
[368649428,1751266246558,-490.0,0.00016438,2]
[368649429,1751266246567,-222.6943797,0.00016438,2]
[368649430,1751266246576,-490.0,0.00016438,2]
[368649431,1751266246585,-490.0,0.00016438,2]
[368649432,1751266246595,-490.0,0.00016438,2]
[368649433,1751266246604,-490.0,0.00016438,2]
[368649434,1751266246614,-2838.22,0.00016438,2]
[368649435,1751266246624,-1497.69,0.00016438,2]
[368649436,1751266246634,-490.0,0.00016438,2]
[368649437,1751266246643,-2564.39,0.00016438,2]
[368649438,1751266246654,-1721.31,0.00016438,2]
[368649439,1751266246663,-1898.31,0.00016438,2]
[368649440,1751266246673,-1027.44,0.00016438,2]
[368649441,1751266246683,-490.0,0.00016438,2]
[368649442,1751266246692,-490.0,0.00016438,2]
[368649443,1751266246701,-490.0,0.00016438,2]
[368649444,1751266246710,-1557.49,0.00016438,2]
[368649445,1751266246720,-7672.5,0.00016438,2]
[368649446,1751266246729,-567.37,0.00016438,2]
[368649447,1751266246739,-2109.3,0.00016438,2]
[368649448,1751266246750,-490.0,0.00016438,2]
[368649449,1751266246760,-1000.0,0.00016438,2]
[368649450,1751266246770,-2045.49,0.00016438,2]
[368649451,1751266246780,-490.0,0.00016438,2]
[368649452,1751266246790,-535.10098065,0.00016438,2]
[368649453,1751266246800,-2682.12,0.00016438,2]
[368649454,1751266246810,-2032.73,0.00016438,2]
[368649455,1751266246819,-490.0,0.00016438,2]
[368649456,1751266246828,-541.3,0.00016438,2]
[368649457,1751266246838,-490.0,0.00016438,2]
[368649458,1751266246848,-1144.93,0.00016438,2]
[368649459,1751266246858,-490.0,0.00016438,2]
[368649460,1751266246867,-490.0,0.00016438,2]
[368649461,1751266246877,-167364.61,0.00016438,2]
[368649462,1751266246887,-490.0,0.00016438,2]
[368649463,1751266246896,-490.0,0.00016438,2]
[368649464,1751266246905,-1126.21,0.00016438,2]
[368649465,1751266246915,-199.361757,0.00016438,2]
[368649466,1751266246925,-490.0,0.00016438,2]
[368649467,1751266246935,-490.0,0.00016438,2]
[368649468,1751266246944,-2055.9,0.00016438,2]
[368649469,1751266246953,-2269.1,0.00016438,2]
[368649470,1751266246963,-2726.76,0.00016438,2]
[368649471,1751266246972,-490.0,0.00016438,2]
[368649472,1751266246981,-3513.25,0.00016438,2]
[368649473,1751266246990,-490.0,0.00016438,2]
[368649474,1751266246999,-490.0,0.00016438,2]
[368649475,1751266247008,-1315.38,0.00016438,2]
[368649476,1751266247017,-1783.6,0.00016438,2]
[368649477,1751266247027,-26088.21,0.00016438,2]
[368649478,1751266247036,-490.0,0.00016438,2]
[368649479,1751266247046,-1205.1,0.00016438,2]
[368649480,1751266247055,-1645.27,0.00016438,2]
[368649481,1751266247064,-490.0,0.00016438,2]
[368649482,1751266247074,-1330.57,0.00016438,2]
[368649483,1751266247083,-490.0,0.00016438,2]
[368649484,1751266247093,-490.0,0.00016438,2]
[368649485,1751266247103,-490.0,0.00016438,2]
[368649486,1751266247112,-490.0,0.00016438,2]
[368649487,1751266247121,-3546.32,0.00016438,2]
[368649488,1751266247131,-3505.13,0.00016438,2]
[368649489,1751266247142,-4472.57,0.00016438,2]
[368649490,1751266247152,-744.31,0.00016438,2]
[368649491,1751266247165,-490.0,0.00016438,2]
[368649492,1751266247176,-490.0,0.00016438,2]
[368649493,1751266247185,-3348.51,0.00016438,2]
[368649494,1751266247195,-490.0,0.00016438,2]
[368649495,1751266247205,-6993.68,0.00016438,2]
[368649496,1751266247215,-11481.9,0.00016438,2]
[368649497,1751266247224,-679.7,0.00016438,2]
[368649498,1751266247234,-496.1,0.00016438,2]
[368649499,1751266247243,-490.0,0.00016438,2]
[368649500,1751266247253,-605.55,0.00016438,2]
[368649501,1751266247263,-490.0,0.00016438,2]
[368649502,1751266247272,-3088.48,0.00016438,2]
[368649503,1751266247282,-490.0,0.00016438,2]
[368649504,1751266247292,-490.0,0.00016438,2]
[368649505,1751266247302,-490.0,0.00016438,2]
[368649506,1751266247312,-490.0,0.00016438,2]
[368649507,1751266247322,-1140.03,0.00016438,2]
[368649508,1751266247332,-2439.18,0.00016438,2]
[368649509,1751266247341,-490.0,0.00016438,2]
[368649510,1751266247351,-490.0,0.00016438,2]
[368649511,1751266247361,-5432.3,0.00016438,2]
[368649512,1751266247371,-797.27,0.00016438,2]
[368649513,1751266247380,-490.0,0.00016438,2]
[368649514,1751266247389,-3166.82,0.00016438,2]
[368649515,1751266247399,-2612.63,0.00016438,2]
[368649516,1751266247412,-635.65,0.00016438,2]
[368649517,1751266247421,-2100.53,0.00016438,2]
[368649518,1751266247430,-1688.81,0.00016438,2]
[368649519,1751266247442,-2195.39,0.00016438,2]
[368649520,1751266247452,-3467.82,0.00016438,2]
[368649521,1751266247461,-490.0,0.00016438,2]
[368649522,1751266247471,-677.66,0.00016438,2]
[368649523,1751266247481,-664.14,0.00016438,2]
[368649524,1751266247490,-490.0,0.00016438,2]
[368649525,1751266247500,-7285.43,0.00016438,2]
[368649526,1751266247509,-490.0,0.00016438,2]
[368649527,1751266247519,-490.0,0.00016438,2]
[368649528,1751266247528,-490.0,0.00016438,2]
[368649529,1751266247537,-1476.42,0.00016438,2]
[368649530,1751266247547,-2635.18,0.00016438,2]
[368649531,1751266247556,-3536.15,0.00016438,2]
[368649532,1751266247566,-491.2435403,0.00016438,2]
[368649533,1751266247575,-617.3,0.00016438,2]
[368649534,1751266247584,-1276.81,0.00016438,2]
[368649535,1751266247594,-490.0,0.00016438,2]
[368649536,1751266247603,-490.0,0.00016438,2]
[368649537,1751266247612,-1014.58,0.00016438,2]
[368649538,1751266247622,-2948.83,0.00016438,2]
[368649539,1751266247633,-490.0,0.00016438,2]
[368649540,1751266247643,-490.0,0.00016438,2]
[368649541,1751266247652,-611.64,0.00016438,2]
[368649542,1751266247663,-702.1,0.00016438,2]
[368649543,1751266247672,-1404.88,0.00016438,2]
[368649544,1751266247682,-2902.29,0.00016438,2]
[368649545,1751266247691,-490.0,0.00016438,2]
[368649546,1751266247700,-1356.37,0.00016438,2]
[368649547,1751266247709,-1806.41,0.00016438,2]
[368649548,1751266247718,-490.0,0.00016438,2]
[368649549,1751266247728,-1761.55,0.00016438,2]
[368649550,1751266247739,-490.5725155,0.00016438,2]
[368649551,1751266247754,-490.0,0.00016438,2]
[368649552,1751266247769,-490.0,0.00016438,2]
[368649553,1751266247780,-848.36,0.00016438,2]
[368649554,1751266247795,-772.94,0.00016438,2]
[368649555,1751266247809,-4149.79,0.00016438,2]
[368649556,1751266247824,-987.01,0.00016438,2]
[368649557,1751266247837,-490.0,0.00016438,2]
[368649558,1751266247849,-1239.99,0.00016438,2]
[368649559,1751266247864,-490.0,0.00016438,2]